Cogmind - Beta 9.6 @@@ ROGUE MODE // 2020.07.05 @ 11:55:23 Player: Pitt Result: Destroyed by S-10 Pest with Light Assault Rifle Performance ------------- Evolutions (1) 500 Regions Visited (5) 1000 Robots Destroyed (21) 105 Value Destroyed (477) 477 Prototype IDs (1) 20 Alien Tech Used (0) 0 Bonus (95) 95 TOTAL SCORE: 2197 Bonus ------- Follower Combat Kills 95 Cogmind --------- Core Integrity 0/400 Matter 273/300 Energy 73/100 System Corruption 1% Temperature Cool (0) Movement Core (150) Ox2 Location -8/Mines Parts ------- > --- POWER (1) -------- (None) > --- PROPULSION (2) --- (None) > --- UTILITY (4) ------ Medium Storage Unit Seismic Analyzer > --- WEAPON (2) ------- Light Assault Rifle > --- INVENTORY (8) ---- Light Treads Light Treads Improved Flight Unit Improved Flight Unit Improved Flight Unit Improved Flight Unit Heat Sink Peak State ------------ > --- POWER ------------ Ion Engine > --- PROPULSION ------- Improved Flight Unit Improved Flight Unit > --- UTILITY ---------- Heat Sink Medium Storage Unit Improved Terrain Scanner Seismic Analyzer > --- WEAPON ----------- Small Laser Small Laser > --- INVENTORY -------- Light Ion Engine Light Treads Light Treads Aluminum Leg Aluminum Leg Aluminum Leg Improved Heat Sink Tractor Beam [Rating: 15] Favorites ----------- Power Light Ion Engine Engine Light Ion Engine Power Core Light Nuclear Core Propulsion Aluminum Leg Leg Aluminum Leg Flight Unit Improved Flight Unit Utility Medium Storage Unit Device Improved Terrain Scanner Storage Medium Storage Unit Processor Seismic Analyzer Weapon Light Assault Rifle Energy Gun Small Laser Ballistic Gun Light Assault Rifle Special Weapon Mining Laser Build | -11 -10 -9 -9 -9 -8 ------- Run | Scr Mat Mat Min Exi Min Slots Evolved 2 | . . 2 . . . Power . | . . . . . . Propulsion . | . . . . . . Utility 2 | . . 2 . . . Weapon . | . . . . . . Parts Attached 49 | 9 11 17 9 . 3 Power 6 | 1 2 1 2 . . Engine 5 | 1 1 1 2 . . Core 1 | . 1 . . . . Reactor . | . . . . . . Propulsion 15 | 2 4 7 2 . . Treads . | . . . . . . Leg 11 | 2 4 5 . . . Wheel . | . . . . . . Hover . | . . . . . . Flight 4 | . . 2 2 . . Utility 11 | 4 1 5 1 . . Device 8 | 3 . 4 1 . . Storage 2 | 1 1 . . . . Processor 1 | . . 1 . . . Hackware . | . . . . . . Protection . | . . . . . . Artifact . | . . . . . . Weapon 17 | 2 4 4 4 . 3 Energy Gun 7 | 1 2 4 . . . Energy Cannon . | . . . . . . Ballistic Gun 7 | 1 2 . 2 . 2 Ballistic Cannon . | . . . . . . Launcher . | . . . . . . Special Weapon 3 | . . . 2 . 1 Impact Weapon . | . . . . . . Slashing Weapon . | . . . . . . Piercing Weapon . | . . . . . . Special Melee Weapon . | . . . . . . Unidentified Prototypes 1 | . . 1 . . . Parts Lost 22 | . 5 5 8 . 4 Power 5 | . 1 1 2 . 1 Propulsion 4 | . 1 1 2 . . Utility 2 | . . . 1 . 1 Weapon 11 | . 3 3 3 . 2 Highest Loss Streak 4 | . 2 3 4 . 4 Average Slot Usage (%) 82 | . 93 94 74 75 40 Engine 8 | . 6 7 8 11 . Core 2 | . 7 2 . . . Leg 12 | . 27 20 5 . . Flight 7 | . . . 11 22 . Device 16 | . 14 22 16 11 7 Storage 11 | . 14 11 11 11 11 Processor 8 | . . 11 11 11 11 Energy Gun 6 | . 13 16 . . . Ballistic Gun 4 | . 9 2 5 . 7 Special Weapon 3 | . . . 4 9 3 Naked Turns . | . . . . . . Heaviest Build 19 | 11 16 19 15 13 10 Greatest Support 20 | 20 20 20 20 12 3 Greatest Overweight (x) 4 | 3 1 2 4 1 3 Average Overweight (x) . | . . . . . 2 Largest Inventory Capacity 8 | 6 8 8 8 8 8 Average Capacity 7 | 5 7 8 8 8 8 Most Carried 8 | 6 8 8 8 8 8 Average Carried 6 | 4 6 7 6 7 7 Final Capacity 8 | 6 8 8 8 8 8 Final Carried 8 | 6 7 8 7 8 7 Class Distribution -------------------- 69% | Scavenger-Mutant 27% | Mutant Dominant Class ---------------- Scavenger-Mutant | -10/Materials Scavenger-Mutant | -9/Materials Scavenger-Mutant | -9/Mines Scavenger-Mutant | -9/Exiles Scavenger-Mutant | -8/Mines Resources | -11 -10 -9 -9 -9 -8 ----------- Run | Scr Mat Mat Min Exi Min Matter Collected 652 | 293 114 161 84 . . Remotely 323 | 263 . 60 . . . Salvage Created 723 | 133 246 243 101 . . Parts 47 | 11 13 12 9 . 2 Haulers Intercepted 1 | . . 1 . . . Recyclers Shooed 3 | 1 2 . . . . Parts Field Recycled . | . . . . . . Retrieved Matter . | . . . . . . Parts Self-Destructed . | . . . . . . Prevented . | . . . . . . Kills | -11 -10 -9 -9 -9 -8 ------- Run | Scr Mat Mat Min Exi Min Combat Hostiles Destroyed 16 | . 6 4 5 . 1 Melee 3 | . . 1 2 . . Guns 12 | . 6 3 3 . . Cannons 1 | . . . . . 1 Classes Destroyed 6 | 2 1 2 1 . . Tunneler 3 | 3 . . . . . Hauler 1 | . . 1 . . . Recycler 1 | 1 . . . . . Swarmer 5 | . . . 4 . 1 Grunt 10 | . 6 3 1 . . Sentry 1 | . . 1 . . . Best Kill Streak 3 | 2 2 2 3 . 1 Combat Bots Only 3 | . 2 2 3 . 1 Max Kills in Single Turn 1 | 1 1 1 1 . 1 Gunslinging . | . . . . . . Exploded . | . . . . . . Melee 1 | . . 1 1 . . Uniques/NPCs Destroyed . | . . . . . . Combat | -11 -10 -9 -9 -9 -8 -------- Run | Scr Mat Mat Min Exi Min Damage Taken 1952 | . 594 520 540 . 298 Core 506 | . 103 151 150 . 102 Absorbed by Shields . | . . . . . . Core Remaining (%) 79 | 100 58 . . . . Volleys Fired 135 | 11 48 33 35 . 8 Largest 2 | 2 2 2 2 . 1 Hottest 100 | 60 80 80 100 . 100 Shots Fired 181 | 14 80 43 36 . 8 Gun 177 | 14 80 43 33 . 7 Cannon . | . . . . . . Launcher . | . . . . . . Special 4 | . . . 3 . 1 Kinetic 106 | 3 49 18 29 . 7 Thermal 59 | . 26 25 7 . 1 Explosive . | . . . . . . Electromagnetic 16 | 11 5 . . . . Robot Hit Streak 11 | 4 11 10 6 . 1 Robot Miss Streak 3 | 1 3 3 2 . 3 Penetration Max . | . . . . . . Secondary Targets 1 | . . . 1 . . Max Gunslinging Chain 1 | . . . 1 . . Shots Hit Robots 111 | 9 52 28 20 . 2 Core Hits 48 | 5 16 13 13 . 1 Critical Hits . | . . . . . . Critical Kills . | . . . . . . Critical Parts Destroyed . | . . . . . . Melee Attacks . | . . . . . . Impact . | . . . . . . Slashing . | . . . . . . Piercing . | . . . . . . Sneak Attacks . | . . . . . . Combat Hostiles . | . . . . . . Follow-up Attacks . | . . . . . . Damage Inflicted 1174 | 134 439 294 254 . 53 Guns 1073 | 112 439 281 212 . 29 Cannons . | . . . . . . Explosions 22 | 22 . . . . . Melee . | . . . . . . Ramming 55 | . . 13 42 . . Kinetic 533 | 6 234 93 171 . 29 Thermal 453 | 22 178 188 41 . 24 Explosive . | . . . . . . Electromagnetic 133 | 106 27 . . . . Impact . | . . . . . . Slashing . | . . . . . . Piercing . | . . . . . . Highest Corruption 1 | . . 1 1 1 1 Average Corruption 1 | . . 1 1 1 1 Corruption Purged . | . . . . . . Effects 4 | . . 1 2 1 . Message Errors 1 | . . 1 . . . Energy Discharges 1 | . . . . 1 . Data Loss (minor) 1 | . . . 1 . . Targeting Errors 1 | . . . 1 . . Overload Shots . | . . . . . . Overflow Damage . | . . . . . . Projectiles . | . . . . . . Explosions . | . . . . . . Melee . | . . . . . . Knockbacks . | . . . . . . Impact . | . . . . . . Kinetic . | . . . . . . Secondary . | . . . . . . Self-Inflicted Damage 12 | . . 5 7 . . Shots . | . . . . . . Rammed 14 | . . 9 5 . . Targets Rammed 25 | . . 10 15 . . Kicked 11 | . . 1 10 . . Crushed . | . . . . . . Highest Temperature 136 | 20 136 5 22 . . Average Temperature 30 | 15 34 4 9 . . Received Heat Transfer 699 | . 330 252 117 . . Siege Activations . | . . . . . . Robots Corrupted . | . . . . . . Combat Hostiles . | . . . . . . Parts Fried . | . . . . . . Impact Corruptions . | . . . . . . Robots Melted . | . . . . . . Combat Hostiles . | . . . . . . Parts Melted 1 | . 1 . . . . Heat Transferred 1024 | 50 400 425 99 . 50 Parts Sabotaged . | . . . . . . Parts Stolen . | . . . . . . Parts Stripped . | . . . . . . Power Chain Reactions 1 | 1 . . . . . Missiles Intercepted . | . . . . . . Alert | -11 -10 -9 -9 -9 -8 ------- Run | Scr Mat Mat Min Exi Min Peak Influence 213 | 20 213 157 201 . 30 Average Influence 85 | 10 108 110 105 . 7 Maximum Alert Level 1 | . 1 . 1 . . Low Security (%) 95 | 100 80 100 99 . 100 Level 1 4 | . 19 . . . . Level 2 . | . . . . . . Level 3 . | . . . . . . Level 4 . | . . . . . . Level 5 . | . . . . . . High Security . | . . . . . . Max Security . | . . . . . . Squads Dispatched 5 | . 3 2 . . . Investigation 3 | . 1 2 . . . Extermination . | . . . . . . Reinforcement 2 | . 2 . . . . Assault . | . . . . . . Garrison . | . . . . . . Intercept . | . . . . . . Construction Impeded . | . . . . . . Haulers Reinforced . | . . . . . . Stealth | -11 -10 -9 -9 -9 -8 --------- Run | Scr Mat Mat Min Exi Min Distress Signals . | . . . . . . Communications Jammed . | . . . . . . Distress Signals . | . . . . . . Times Spotted 40 | . 16 12 9 . 3 Peak Tracking Total 6 | . 5 6 3 . 3 Tactical Retreats 8 | . 2 5 1 . . Traps | -11 -10 -9 -9 -9 -8 ------- Run | Scr Mat Mat Min Exi Min Traps Triggered 2 | . 1 1 . . . Indirectly . | . . . . . . Trap Hack Attempts . | . . . . . . Triggered . | . . . . . . Disarmed . | . . . . . . Reprogrammed . | . . . . . . Reused . | . . . . . . Traps Extracted . | . . . . . . Installed . | . . . . . . Triggered . | . . . . . . Machines | -11 -10 -9 -9 -9 -8 ---------- Run | Scr Mat Mat Min Exi Min Machines Disabled . | . . . . . . Max in Single Turn . | . . . . . . Machines Sabotaged . | . . . . . . Garrisons Compromised . | . . . . . . Overloaded Fab Kills . | . . . . . . Fab Network Shutdowns . | . . . . . . Hacking | -11 -10 -9 -9 -9 -8 --------- Run | Scr Mat Mat Min Exi Min Machines Accessed 2 | . 1 1 . . . Terminals 2 | . 1 1 . . . Fabricators . | . . . . . . Repair Stations . | . . . . . . Recycling Units . | . . . . . . Scanalyzers . | . . . . . . Garrison Access . | . . . . . . Total Hacks 7 | . 5 2 . . . Successful 4 | . 3 1 . . . Failed 3 | . 2 1 . . . Catastrophic . | . . . . . . Database Lockouts . | . . . . . . Manual 5 | . 3 2 . . . Terminals 7 | . 5 2 . . . Fabricators . | . . . . . . Repair Stations . | . . . . . . Recycling Units . | . . . . . . Scanalyzers . | . . . . . . Garrison Access . | . . . . . . Terminal Hacks 4 | . 3 1 . . . Branch Access Points 1 | . 1 . . . . Terminal Index 2 | . 1 1 . . . Hauler Manifests 1 | . 1 . . . . Fabricator Hacks . | . . . . . . Repair Station Hacks . | . . . . . . Recycling Unit Hacks . | . . . . . . Scanalyzer . | . . . . . . Garrison Access Hacks . | . . . . . . Unauthorized Hacks . | . . . . . . Terminals . | . . . . . . Fabricators . | . . . . . . Repair Stations . | . . . . . . Recycling Units . | . . . . . . Scanalyzers . | . . . . . . Garrison Access . | . . . . . . Data Cores Recovered . | . . . . . . Used . | . . . . . . Hacking Detections 2 | . 1 1 . . . Full Trace Events 1 | . . 1 . . . Feedback Events . | . . . . . . Feedback Blocked . | . . . . . . Robot Schematics Acquired . | . . . . . . Robots Built . | . . . . . . Matter . | . . . . . . Time . | . . . . . . Total Robot Build Rating . | . . . . . . Part Schematics Acquired . | . . . . . . Parts Built . | . . . . . . Matter . | . . . . . . Time . | . . . . . . Total Part Build Rating . | . . . . . . Parts Repaired . | . . . . . . Time . | . . . . . . Parts Recycled . | . . . . . . Recycled Matter . | . . . . . . Retrieved Matter . | . . . . . . Retrieved Components . | . . . . . . Parts Scanalyzed . | . . . . . . Part Schematics Acquired . | . . . . . . Parts Damaged . | . . . . . . Bothacking | -11 -10 -9 -9 -9 -8 ------------ Run | Scr Mat Mat Min Exi Min Used RIF Installer . | . . . . . . Robots Hacked . | . . . . . . Non-combat . | . . . . . . Combat . | . . . . . . Robot Hacks Applied . | . . . . . . Relay Couplers Released . | . . . . . . Robots Rewired . | . . . . . . Allies Hacked . | . . . . . . Hacks Repelled . | . . . . . . Allies | -11 -10 -9 -9 -9 -8 -------- Run | Scr Mat Mat Min Exi Min Total Allies 3 | . . . 3 . . Largest Group 3 | . . . 3 . . Highest-Rated Group 40 | . . . 40 . . Highest-Rated Ally 16 | . . . 16 . . Total Orders . | . . . . . . Ally Attacks 26 | . . . 26 . . Total Damage 253 | . . . 253 . . Kills 5 | . . . 5 . . Allies Corrupted . | . . . . . . Allies Melted . | . . . . . . Intel | -11 -10 -9 -9 -9 -8 ------- Run | Scr Mat Mat Min Exi Min Robot Analysis Total . | . . . . . . Derelict Logs Recovered 2 | . . . 2 . . Drone Launches . | . . . . . . Drone Recoveries . | . . . . . . Exploration | -11 -10 -9 -9 -9 -8 ------------- Run | Scr Mat Mat Min Exi Min Turns Passed 1569 | 287 266 323 452 213 28 Spaces Moved 824 | 177 108 166 256 113 4 Core 87 | 80 . . 3 . 4 Treads . | . . . . . . Legs 451 | 97 108 165 81 . . Wheels . | . . . . . . Hover . | . . . . . . Flight 286 | . . 1 172 113 . Fastest Speed 32 | 50 120 120 32 32 150 Average Speed 111 | 136 120 121 112 40 187 Slowest Speed 250 | 200 150 175 250 102 200 Overloaded Moves . | . . . . . . Propulsion Burnouts . | . . . . . . Robots Hopped . | . . . . . . Cave-ins Triggered . | . . . . . . Exploration Rate (%) 22 | 9 19 17 70 14 5 Regions Visited 5 Branch Regions 3 Pre-discovered Areas . | . . . . . . Known Exits Taken . | . . . . . . Unknown Exits Taken 5 | 1 1 1 1 1 . Scrap Searched 1 | . . . 1 . . Spaces Dug 2 | . . . 2 . . Terrain Destroyed 4 | 2 . . 2 . . Melee . | . . . . . . Projectile 2 | . . . 2 . . AOE 2 | 2 . . . . . Actions | -11 -10 -9 -9 -9 -8 --------- Run | Scr Mat Mat Min Exi Min Total 1294 | 204 175 242 377 279 17 Wait 233 | . 1 5 61 166 . Move 819 | 176 107 165 255 112 4 Hop . | . . . . . . Pick Up 14 | 8 2 4 . . . Fast Attach 23 | 5 4 8 5 . 1 Attach 13 | 2 3 3 3 . 2 Detach 7 | . 2 1 2 1 1 Swap 13 | 2 4 6 1 . . Drop 12 | . 4 7 . . 1 Fire 135 | 11 48 33 35 . 8 Melee . | . . . . . . Ram . | . . . . . . Kick 25 | . . 10 15 . . Crush . | . . . . . . Escape Stasis . | . . . . . . Rewire . | . . . . . . Trap . | . . . . . . Miscellaneous . | . . . . . . Route ------- -11/Scrapyard -10/Materials (discovered 3 exits: *Mat / Min x2) -9/Materials -9/Mines (discovered 2 exits: [*Exi] / [*Zio]) -9/Exiles -8/Mines History --------- Turn | Location | Event 10 | -11/Scrapyard | Discovered new exit (range 16) 288 | -11/Scrapyard | Entered Materials 315 | -10/Materials | Build established: Mutant 440 | -10/Materials | Identified exit to Mines 528 | -10/Materials | Discovered new exit (range 9) 554 | -10/Materials | Entered another Materials area 554 | -9/Materials | Evolved 2 slots: Utility x2 657 | -9/Materials | Lost 3 parts (1p2w) 701 | -9/Materials | Build established: Scavenger-Mutant 871 | -9/Materials | Discovered new exit (range 6) 877 | -9/Materials | Entered Mines 891 | -9/Mines | Core integrity fell below 50% 928 | -9/Mines | Lost 3 parts (1p2w) 1034 | -9/Mines | Learned location of 1 exit from Lower Caves 1092 | -9/Mines | Learned Materials security intel 1092 | -9/Mines | Assisted by bots powering up and referring to "LRC-V3" 1117 | -9/Mines | Lost 4 parts (1p1n1u1w) 1190 | -9/Mines | Discovered new exit (range 15) 1205 | -9/Mines | A Derelict revealed a hidden shortcut to a safe place 1329 | -9/Mines | Entered Exiles 1511 | -9/Exiles | Discovered new exit (range 15) 1514 | -9/Exiles | Met 8R-AWN 1542 | -9/Exiles | Entered Mines 1554 | -8/Mines | Core integrity fell below 20% 1570 | -8/Mines | Destroyed by S-10 Pest with Light Assault Rifle Last Messages --------------- 01226_ Acquired Lgt. Assault Rifle. 01249_ Acquired 10 matter. 01284_ U-05 Engineer builds a Wall. 01308_ Trooper 2b destroyed. LOCATION=UNKNOWN GOAL=ESCAPE 01379_ System corrupted: Energy discharge (-35). 01511_ EXIT=FOUND 8R-AWN: Oh you look... interesting. The Exiles will probably want to check you out. Keep your grabby things to yourself, though. I've got my sensors on you. LOCATION=UNKNOWN GOAL=ESCAPE 01544_ Dropped Imp. Flight Unit. 01548_ Lgt. Ion Engine destroyed. 01557_ Lgt. Assault Rifle destroyed. 01561_ Imp. Terrain Scanner destroyed. 01562_ S-10 Pest destroyed. 01566_ Mining Laser destroyed. 01568_ Acquired Lgt. Assault Rifle. Map ----- +----------------------------------------------------+ | ?????????????????????????????????????????????????? | | ?????????????????????????????????????????????????? | | ?????????????????????????????????????????????????? | | ?????????????????????????????????????????????????? | | ?????????????????????????????????????????????????? | | ?????????????????????????????????????????????????? | | ?????????????????????????????????????????????????? | | ?????????????????????????????????????????????????? | | ?????????????????????????????????????????????????? | | ?????????????????????????????????????????????????? | | ?????????????????????????????????????????????????? | | ?????????????????????????????????????????????????? | | ?????????????????????????????????????????????????? | | ????????????????????? ????? ????????????????????? | | ???????????????????????????? ????????????????????? | | ????????????????????????#??? ????????????????????? | | ?????????????????#????#??????????????????????????? | | ????????????? ???????#?##???#??##????????????????? | | ????????????????#?????? #?#??#??????????????????? | | ?????????????????? ????# #??#????????????????????? | | ???????????????????#???# ##??????????#???????????? | | ???????????????????# ### ##??????????????????????? | | ???????????#??????## ## ##??##???## ?????????? | | ???????????????#??## ##???? ??????????? | | ?????????? ???????# #### #?????????????? | | ??????????????#????# s@s ##??#??????????? | | ??????????????#????## #??????????????? | | ??????????#???#?????## #?????????????? | | ?????????????????????# = #### #????????????? | | ??????????????#??????## ##???# #????????????? | | ????????????????#?????####??????? ##????????????? | | ???????????#?????#??????#???#????? #?????????????? | | ??????????????????????##????????????##?#?????????? | | ??????????????????????#????????#???#???#?????????? | | ????????????#??#???##??????????????#?#???????????? | | ??????????????????##??????????#????#?#???????????? | | ????????????????????????#????????????????????????? | | ????????????????#??#???#??#??????????????????????? | | | | | | | | | | | | | | | | | | | | | | | | | +----------------------------------------------------+ Best States ------------- Heat Dissipation 52 Energy Generation 14 Energy Capacity 250 Matter Stores 300 Matter Capacity 300 Sight Range 16 Terrain Scan Range 16 Terrain Scan Density 60 Evasion (%) 63 Item Schematics ----------------- None Robot Schematics ------------------ None Fabricated ------------ Nothing Alien Tech Used ----------------- None Achievements -------------- None Challenges ------------ None Game ------ Seed RagnarokGravitonTrap Manual? 0 Play Time 00:16:13 Cumulative 67.4 hours Start 2020.07.05 @ 11:39:35 End 2020.07.05 @ 11:55:23 Sessions 1 Manual Loads 0 Difficulty Rogue Special Mode None Game No. 118 Rogue 118 Adventurer 0 Explorer 0 Win Type - Total 0 Types 0/0/0/0/0/0/0 Lore% 43 Gallery% 49 Achievement% 32 Wizard Run 0 Options --------- ASCII 0 Keyboard 0 Movement Mouse Keybinds 0 Fullscreen 1 Font 12/Smallcaps Map View 83x54 Tactical HUD 1 Map Filters NONE Filters NONE Steam 1 RUN: 50692970-b8b1-4865-b2f6-58e2820b4cf6